bitfinex/quotes_BTCUSD_20241010
["timestamp","ask_amount","ask_price","bid_price","bid_amount"]
[1728520796898,0.011,60451.0,60450.0,0.324942]
[1728520798251,0.011,60451.0,60450.0,0.447942]
[1728520799844,0.012634,60451.0,60450.0,0.447942]
[1728520800508,0.012634,60451.0,60450.0,0.424942]
[1728520800761,0.012634,60451.0,60450.0,0.267242]
[1728520803753,0.012634,60451.0,60450.0,0.443442]
[1728520803977,0.012634,60451.0,60450.0,2.17605364]
[1728520804440,0.007634,60451.0,60450.0,2.17605364]
[1728520804713,0.001634,60451.0,60450.0,2.17605364]
[1728520805156,0.001634,60451.0,60450.0,2.17505364]
[1728520805606,0.001634,60460.0,60459.0,0.47777478]
[1728520805852,0.001634,60460.0,60459.0,1.06940878]
[1728520806064,0.001634,60460.0,60459.0,1.23224642]
[1728520806286,0.2483382,60475.0,60474.0,0.59053378]
[1728520806726,0.0491913,60481.0,60477.0,0.330703]
[1728520806943,0.2975295,60482.0,60481.0,0.165341]
[1728520807164,0.0491913,60482.0,60481.0,0.165341]
[1728520807380,0.0513273,60484.0,60483.0,0.165335]
[1728520807597,0.002136,60484.0,60481.0,0.496018]
[1728520807811,0.002136,60484.0,60481.0,0.165338]
[1728520808050,0.002136,60484.0,60479.0,0.330692]
[1728520808269,0.002136,60482.0,60479.0,0.496037]
[1728520808514,0.002136,60482.0,60479.0,0.165345]
[1728520808515,0.006,60482.0,60479.0,0.165345]
[1728520808728,0.008136,60482.0,60479.0,0.165345]
[1728520808955,0.002136,60482.0,60479.0,0.165345]
[1728520809395,0.002136,60482.0,60481.0,0.001]
[1728520809611,0.002136,60480.0,60479.0,0.001]
[1728520809863,0.167479,60480.0,60479.0,0.001]
[1728520810101,0.002136,60481.0,60479.0,0.001]
[1728520810350,0.002136,60481.0,60480.0,0.165343]
[1728520811014,0.002136,60481.0,60479.0,0.002]
[1728520811015,0.002136,60482.0,60481.0,0.165341]
[1728520811456,0.008136,60482.0,60479.0,0.001]
[1728520811697,0.008136,60482.0,60480.0,0.165343]
[1728520811932,0.002136,60482.0,60480.0,0.165343]
[1728520812429,0.008136,60482.0,60480.0,0.165343]
[1728520813529,0.006136,60482.0,60481.0,0.165341]
[1728520813994,0.006136,60482.0,60480.0,0.001]
[1728520813995,0.167477,60481.0,60480.0,0.001]
[1728520814209,0.32831464,60481.0,60480.0,0.001]
[1728520814897,0.002136,60481.0,60480.0,0.001]
[1728520815172,0.01,60482.0,60480.0,0.001]
[1728520815424,0.006136,60482.0,60480.0,0.166341]
[1728520815673,0.167475,60482.0,60478.0,0.165346]
[1728520815914,0.006136,60482.0,60481.0,0.001]
[1728520816179,0.002136,60482.0,60478.0,0.165347]
[1728520816451,0.006136,60482.0,60480.0,0.001]
[1728520816694,0.006136,60482.0,60476.0,0.5790462]
[1728520816695,0.002136,60482.0,60476.0,0.5790462]
[1728520816950,0.002136,60482.0,60476.0,0.330708]
[1728520816951,0.170342,60481.0,60476.0,0.330708]
[1728520817206,0.005,60481.0,60478.0,0.166349]
[1728520817440,0.171474,60482.0,60478.0,0.166349]
[1728520817680,0.177474,60482.0,60478.0,0.166349]
[1728520818169,0.171474,60482.0,60478.0,0.166349]
[1728520818656,0.171474,60482.0,60478.0,0.165349]
[1728520818657,0.005,60481.0,60478.0,0.165349]
[1728520819132,0.170341,60481.0,60476.0,0.330708]
[1728520819397,0.005,60481.0,60478.0,0.166348]
[1728520819883,0.167475,60482.0,60478.0,0.165348]
[1728520820117,0.004,60481.0,60478.0,0.165348]
[1728520820890,0.004,60481.0,60480.0,0.165343]
[1728520821141,0.009,60481.0,60480.0,0.165343]
[1728520822137,0.009,60481.0,60474.0,0.33072]
[1728520822138,0.165353,60477.0,60473.0,0.165363]
[1728520822375,0.165356,60476.0,60475.0,0.2483382]
[1728520822639,0.165356,60476.0,60472.0,0.265365]
[1728520822897,0.165356,60476.0,60474.0,0.165359]
[1728520822898,0.01339409,60476.0,60474.0,0.165359]
[1728520823163,0.17874909,60476.0,60472.0,0.265363]
[1728520823416,0.01339409,60475.0,60474.0,0.16536]
[1728520824144,0.002136,60483.0,60482.0,0.165338]
[1728520824391,0.002136,60484.0,60483.0,0.165335]
[1728520824874,0.002136,60486.0,60484.0,0.165332]
[1728520825131,0.002136,60486.0,60482.0,0.18937378]
[1728520825413,0.01360275,60485.0,60483.0,0.165335]
[1728520825680,0.01360275,60485.0,60484.0,0.330832]
[1728520825918,0.01360275,60485.0,60484.0,0.453832]
[1728520826192,0.165308,60493.0,60489.0,0.165319]
[1728520826443,0.002136,60494.0,60490.0,0.165315]
[1728520826701,0.01363719,60492.0,60490.0,0.165315]
[1728520826986,0.002136,60494.0,60492.0,0.16531]
[1728520826987,0.01363719,60493.0,60492.0,0.16531]
[1728520827188,0.01363719,60493.0,60488.0,0.330639]
[1728520827189,0.165309,60493.0,60488.0,0.330644]
[1728520827416,0.165309,60493.0,60489.0,0.165318]
[1728520827417,0.002136,60492.0,60489.0,0.165318]
[1728520827873,0.002136,60492.0,60490.0,0.001]
[1728520827874,0.009136,60492.0,60490.0,0.001]
[1728520828106,0.011,60492.0,60491.0,0.495938]
[1728520828581,0.011,60492.0,60491.0,0.573038]
[1728520829289,0.004,60492.0,60491.0,0.573038]
[1728520829742,0.167429,60499.0,60494.0,0.165303]
[1728520829973,0.167429,60499.0,60495.0,0.165302]
[1728520831176,0.168429,60499.0,60495.0,0.165302]
[1728520832259,0.167429,60499.0,60495.0,0.165302]
[1728520832525,0.169429,60499.0,60495.0,0.166302]
[1728520832731,0.167436,60496.0,60495.0,0.002]
[1728520832872,0.32827364,60496.0,60495.0,0.002]
[1728520833460,0.32827364,60496.0,60495.0,0.001]
[1728520833674,0.32827364,60496.0,60491.0,0.330627]
[1728520833675,0.165306,60494.0,60490.0,0.2483382]
[1728520833895,0.165306,60494.0,60490.0,0.4136532]
[1728520834106,0.165306,60494.0,60490.0,0.165315]
[1728520834318,0.330607,60495.0,60484.0,0.01146698]
[1728520834319,0.40917584,60493.0,60484.0,0.01146698]
[1728520834538,0.40917584,60493.0,60453.0,0.04929014]
[1728520834539,0.002136,60484.0,60475.0,0.2483382]
[1728520834759,0.002136,60484.0,60482.0,0.2483382]
[1728520834760,0.16083764,60483.0,60482.0,0.2483382]
[1728520834984,0.165349,60478.0,60475.0,0.2483382]
[1728520835428,0.330679,60482.0,60474.0,0.330719]
[1728520835429,0.330677,60482.0,60474.0,0.330719]
[1728520835642,0.165353,60477.0,60473.0,0.395961]
[1728520835860,0.002136,60479.0,60473.0,0.2306]
[1728520836080,0.002136,60479.0,60475.0,0.165357]
[1728520836081,0.167482,60479.0,60475.0,0.165357]
[1728520836766,0.002136,60479.0,60477.0,0.165351]
[1728520837238,0.002136,60479.0,60475.0,0.332712]
[1728520837239,0.170482,60479.0,60475.0,0.166357]
[1728520837469,0.007136,60479.0,60475.0,0.167357]
[1728520837692,0.007136,60479.0,60475.0,0.002]
[1728520837918,0.165354,60476.0,60475.0,0.002]
[1728520838367,0.165354,60476.0,60475.0,0.001]
[1728520838806,0.165354,60476.0,60472.0,0.165365]
[1728520839018,0.33071,60476.0,60471.0,0.1]
[1728520839240,0.165363,60473.0,60471.0,0.1]
[1728520839468,0.002136,60476.0,60469.0,0.1]
[1728520839693,0.002136,60476.0,60467.0,0.165377]
[1728520839694,0.165369,60471.0,60467.0,0.165377]
[1728520839914,0.004,60476.0,60462.0,0.0806]
[1728520839915,0.002136,60468.0,60462.0,0.0806]
[1728520840180,0.002136,60468.0,60460.0,0.2491552]
[1728520840181,0.165395,60461.0,60460.0,0.000817]
[1728520840414,0.32836864,60461.0,60460.0,0.000817]
[1728520840661,0.33567713,60461.0,60460.0,0.000817]
[1728520841530,0.33767713,60461.0,60460.0,0.000817]
[1728520841748,0.33567713,60461.0,60460.0,0.000817]
[1728520842408,0.34467713,60461.0,60460.0,0.001817]
[1728520843513,0.35467713,60461.0,60460.0,0.001817]
[1728520844195,0.40572834,60461.0,60460.0,0.001817]
[1728520844427,0.40371874,60461.0,60460.0,0.001817]
[1728520844652,0.35467713,60461.0,60460.0,0.001817]
[1728520845332,0.40370937,60461.0,60460.0,0.001817]
[1728520847319,0.35667713,60461.0,60460.0,0.001817]
[1728520847542,0.35467713,60461.0,60460.0,0.001817]
[1728520847982,0.40870937,60461.0,60460.0,0.001817]
[1728520848433,0.35967713,60461.0,60460.0,0.001817]
[1728520848663,0.36167713,60461.0,60460.0,0.001817]
[1728520850037,0.35967713,60461.0,60460.0,0.001817]
[1728520850254,0.35467713,60461.0,60460.0,0.001817]
[1728520850473,0.36167713,60461.0,60460.0,0.001817]
[1728520850694,0.35967713,60461.0,60460.0,0.001817]
[1728520852055,0.35467713,60461.0,60460.0,0.001817]
[1728520852318,0.35967713,60461.0,60460.0,0.001817]
[1728520859882,0.35467713,60461.0,60460.0,0.001817]
[1728520862026,0.35631113,60461.0,60460.0,0.001817]
[1728520862536,0.36331113,60461.0,60460.0,0.001817]
[1728520862801,0.36331113,60461.0,60450.0,0.000817]
[1728520862802,0.165423,60451.0,60450.0,0.000817]
[1728520863280,0.17471415,60451.0,60450.0,0.000817]
[1728520864602,0.18071415,60451.0,60450.0,0.000817]
[1728520865033,0.34155179,60451.0,60450.0,0.000817]
[1728520865249,0.34855179,60451.0,60450.0,0.001817]
[1728520871509,0.3997659,60451.0,60450.0,0.001817]
[1728520871994,0.18312879,60451.0,60450.0,0.001817]
[1728520872241,0.02229115,60451.0,60450.0,0.396642]
[1728520872496,0.015136,60451.0,60450.0,0.396642]
[1728520873453,0.013,60451.0,60450.0,0.396642]
[1728520874570,0.013,60451.0,60450.0,0.7679802]
[1728520874789,0.001634,60461.0,60460.0,0.165398]
[1728520875077,0.001634,60461.0,60460.0,0.58657178]
[1728520875320,0.001634,60461.0,60460.0,1.01816578]
[1728520875748,0.001634,60461.0,60460.0,0.83361478]
[1728520876415,0.001634,60461.0,60460.0,0.83461478]
[1728520876624,0.001634,60461.0,60460.0,0.83361478]
[1728520876856,0.001634,60461.0,60460.0,0.83961478]
[1728520877080,0.002634,60461.0,60460.0,0.83961478]
[1728520877542,0.003634,60461.0,60460.0,0.84561478]
[1728520879120,0.003634,60461.0,60460.0,0.2438]
[1728520879354,0.003634,60461.0,60460.0,0.012]
[1728520879355,0.17847242,60461.0,60460.0,0.012]
[1728520879576,0.171165,60461.0,60460.0,0.012]
[1728520879789,0.22970037,60461.0,60460.0,0.012]
[1728520880018,0.57991179,60461.0,60460.0,0.012]
[1728520880246,0.57991179,60461.0,60450.0,0.000817]
[1728520880247,0.165423,60451.0,60450.0,0.000817]
[1728520880476,0.32626064,60451.0,60450.0,0.000817]
[1728520880937,0.33351981,60451.0,60450.0,0.000817]
[1728520882070,0.00725917,60451.0,60450.0,0.000817]
[1728520882289,0.00725917,60451.0,60450.0,0.166242]
[1728520882501,0.002136,60452.0,60451.0,0.165423]
[1728520882739,0.00939517,60452.0,60451.0,0.165423]
[1728520882956,0.00939517,60452.0,60450.0,0.000817]
[1728520883173,0.004,60451.0,60450.0,0.166242]
[1728520883393,0.05850757,60452.0,60450.0,0.166242]
[1728520883595,0.004,60451.0,60450.0,0.166242]
[1728520883846,0.01125917,60451.0,60450.0,0.166242]
[1728520884065,0.22185082,60451.0,60450.0,0.000817]
[1728520884292,0.00725917,60451.0,60450.0,0.000817]
[1728520884533,0.05644242,60451.0,60450.0,0.166242]
[1728520884743,0.00725917,60451.0,60450.0,0.166242]
[1728520885184,0.01125917,60451.0,60450.0,0.166242]
[1728520885399,0.004,60451.0,60450.0,0.266242]
[1728520885619,0.004,60451.0,60450.0,0.522042]
[1728520885844,0.004,60451.0,60450.0,1.438303]
[1728520886092,0.004,60451.0,60450.0,1.368151]
[1728520886312,0.008,60451.0,60450.0,1.055428]
[1728520886531,0.004,60451.0,60450.0,1.055428]
[1728520886746,0.005,60451.0,60450.0,1.07434086]
[1728520886986,0.001,60451.0,60450.0,1.06734086]
[1728520887422,0.003,60451.0,60450.0,1.06834086]
[1728520887879,0.002,60451.0,60450.0,1.06834086]
[1728520888327,0.003,60451.0,60450.0,1.06834086]
[1728520888980,0.003,60451.0,60450.0,0.53781886]
[1728520890316,0.001634,60461.0,60460.0,0.165398]
[1728520890533,0.0088356,60461.0,60460.0,0.165398]
[1728520893648,0.0148356,60461.0,60460.0,0.165398]
[1728520894567,0.007634,60461.0,60460.0,0.165398]
[1728520896116,0.01483316,60461.0,60460.0,0.165398]
[1728520897015,0.007634,60461.0,60460.0,0.165398]
[1728520897657,0.007634,60461.0,60460.0,0.166215]
[1728520897923,0.18022816,60461.0,60460.0,0.000817]
[1728520898153,0.3432018,60461.0,60460.0,0.000817]
[1728520898404,0.165423,60451.0,60450.0,0.000817]
[1728520898846,0.2218171,60451.0,60450.0,0.000817]
[1728520899075,0.0563941,60451.0,60450.0,0.000817]
[1728520899331,0.2218125,60451.0,60450.0,0.000817]
[1728520899563,0.17266056,60451.0,60450.0,0.000817]
[1728520900288,0.01223756,60451.0,60450.0,0.000817]
[1728520900532,0.01223756,60451.0,60450.0,0.19019078]
[1728520900781,0.005,60451.0,60450.0,0.35561578]
[1728520901498,0.01723756,60451.0,60450.0,0.35561578]
[1728520901994,0.18266056,60451.0,60450.0,0.000817]
[1728520902225,0.3434982,60451.0,60450.0,0.000817]
[1728520903437,0.39265005,60451.0,60450.0,0.000817]
[1728520903701,0.3434982,60451.0,60450.0,0.000817]
[1728520907468,0.39265005,60451.0,60450.0,0.000817]
[1728520907766,0.43953692,60451.0,60450.0,0.000817]
[1728520908047,0.79477746,60451.0,60450.0,0.000817]
[1728520908274,0.79477746,60451.0,60448.0,0.000815]
[1728520908275,0.167578,60444.0,60443.0,0.000815]
[1728520908549,0.64159265,60444.0,60443.0,0.000815]
[1728520908790,0.64877917,60444.0,60443.0,0.000815]
[1728520909034,0.59758154,60444.0,60443.0,0.000815]
[1728520909753,0.72034098,60444.0,60443.0,0.000815]
[1728520910464,0.59758154,60444.0,60443.0,0.000815]
[1728520910702,0.62458154,60444.0,60443.0,0.000815]
[1728520911427,0.72275379,60444.0,60443.0,0.000815]
[1728520911660,0.67532058,60444.0,60443.0,0.000815]
[1728520911953,0.63158154,60444.0,60443.0,0.000815]
[1728520912402,0.68270427,60444.0,60443.0,0.000815]
[1728520912631,0.68269559,60444.0,60443.0,0.000815]
[1728520913325,0.68269559,60444.0,60427.0,0.2483382]
[1728520913326,0.167622,60428.0,60427.0,0.2483382]
[1728520913607,0.32845964,60428.0,60427.0,0.2483382]
[1728520913782,0.33546722,60428.0,60427.0,0.2483382]
[1728520914007,0.33546722,60428.0,60421.0,0.1618]
[1728520914008,0.002136,60422.0,60421.0,0.1618]
[1728520914234,0.002136,60422.0,60421.0,0.5756432]
[1728520914481,0.002136,60422.0,60421.0,0.327305]
[1728520914707,0.002136,60422.0,60421.0,0.84768778]
[1728520914708,0.00700758,60422.0,60421.0,0.84768778]
[1728520914928,0.37999377,60434.0,60424.0,0.165497]
[1728520914929,0.002136,60425.0,60424.0,0.165497]
[1728520915175,0.002136,60425.0,60424.0,0.68586378]
[1728520915621,0.002136,60426.0,60425.0,0.165494]
[1728520916117,0.00914358,60426.0,60425.0,0.165494]
[1728520916355,0.002136,60426.0,60425.0,0.165494]
[1728520916799,0.008136,60426.0,60425.0,0.165494]
[1728520917040,0.014136,60426.0,60425.0,0.165494]
[1728520917257,0.02114358,60426.0,60425.0,0.165494]
[1728520918376,0.014136,60426.0,60425.0,0.165494]
[1728520918601,0.02111029,60426.0,60425.0,0.165494]
[1728520918833,0.014136,60426.0,60425.0,0.165494]
[1728520919184,0.02111029,60426.0,60425.0,0.165494]
[1728520919837,0.014136,60426.0,60425.0,0.165494]
[1728520920038,0.02110988,60426.0,60425.0,0.165494]
[1728520920690,0.01897388,60426.0,60425.0,0.165494]
[1728520920922,0.012,60426.0,60425.0,0.50360359]
[1728520921160,0.012,60426.0,60425.0,0.500294]
[1728520921391,0.012,60426.0,60425.0,0.51191571]
[1728520921833,0.006,60426.0,60425.0,0.51191571]
[1728520922061,0.007,60426.0,60425.0,0.51273271]
[1728520922284,0.007,60426.0,60425.0,0.53573271]
[1728520922770,0.001,60426.0,60425.0,0.53573271]
[1728520923202,0.002,60426.0,60425.0,0.53673271]
[1728520923418,0.002,60426.0,60425.0,0.53959671]
[1728520923669,0.002,60426.0,60425.0,1.06285171]
[1728520923895,0.002,60426.0,60425.0,0.53959671]
[1728520924351,0.002,60426.0,60425.0,0.69733071]
[1728520924586,0.002,60426.0,60425.0,0.94566891]
[1728520924794,0.2483382,60445.0,60431.0,0.002]
[1728520925021,0.2483382,60445.0,60444.0,0.165442]
[1728520925452,0.002136,60446.0,60443.0,0.91870778]
[1728520925453,0.03,60444.0,60443.0,0.91870778]
[1728520926119,0.03,60444.0,60443.0,0.58781878]
[1728520926346,0.03,60444.0,60433.0,0.1]
[1728520926347,0.002136,60438.0,60433.0,0.233]
[1728520926564,0.002136,60438.0,60434.0,0.2483382]
[1728520926565,0.165462,60437.0,60434.0,0.2483382]
[1728520926770,0.165462,60437.0,60431.0,0.33095]
[1728520926771,0.165465,60436.0,60432.0,0.4138122]
[1728520927207,0.330911,60440.0,60431.0,0.33095]
[1728520927208,0.002136,60435.0,60431.0,0.33095]
[1728520927684,0.002136,60435.0,60434.0,0.165469]
[1728520929541,0.003136,60435.0,60434.0,0.172469]
[1728520929776,0.004136,60435.0,60434.0,0.179469]
[1728520929993,0.003136,60435.0,60434.0,0.172469]
[1728520930230,0.01019902,60435.0,60434.0,0.172469]
[1728520930443,0.00919902,60435.0,60434.0,0.166469]
[1728520930655,0.00706302,60435.0,60434.0,0.35484278]
[1728520930884,0.00806302,60435.0,60434.0,0.51074278]
[1728520931105,0.001,60435.0,60434.0,0.51074278]
[1728520932211,0.002136,60446.0,60435.0,0.1]
[1728520932431,0.2483382,60442.0,60441.0,0.16545]
[1728520932659,0.002136,60444.0,60443.0,0.165445]
[1728520932895,0.165434,60447.0,60443.0,0.68570578]
[1728520933113,0.00705436,60444.0,60443.0,0.68570578]
[1728520933346,0.00705436,60444.0,60442.0,0.165446]
[1728520933773,0.00705436,60444.0,60435.0,0.101]
[1728520933774,0.330895,60442.0,60435.0,0.101]
[1728520933996,0.16083764,60442.0,60440.0,0.330906]
[1728520934218,0.00705436,60441.0,60440.0,0.165452]
[1728520935080,0.00705436,60441.0,60440.0,0.165453]
[1728520935311,0.021,60444.0,60443.0,0.165445]
[1728520935531,0.021,60444.0,60443.0,0.35481878]
[1728520935752,0.01806228,60444.0,60443.0,0.35481878]
[1728520935958,0.011,60444.0,60443.0,0.35481878]
[1728520936164,0.16756,60451.0,60445.0,0.330875]
[1728520936401,0.41623812,60450.0,60447.0,0.35480678]
[1728520936628,0.16789992,60450.0,60447.0,0.35480678]
[1728520936850,0.16789992,60450.0,60447.0,0.18937378]
[1728520937063,0.33332792,60450.0,60447.0,0.18937378]
[1728520937283,0.33332592,60450.0,60447.0,0.18937378]
[1728520937492,0.33332592,60450.0,60448.0,0.165429]
[1728520937493,0.16789992,60450.0,60448.0,0.165429]
[1728520937724,0.17389992,60450.0,60447.0,0.35580678]
[1728520937968,0.00707796,60449.0,60447.0,0.35480678]
[1728520938172,0.1679156,60449.0,60447.0,0.35480678]
[1728520938376,0.1679156,60449.0,60448.0,0.165431]
[1728520938599,0.1679156,60449.0,60447.0,0.18937378]
[1728520938806,0.1679156,60449.0,60447.0,0.35480678]
[1728520939034,0.1679156,60449.0,60443.0,0.52267378]
[1728520939035,0.3333436,60449.0,60443.0,0.52267378]
[1728520939266,0.165435,60447.0,60443.0,0.52267378]
[1728520939481,0.165437,60446.0,60443.0,0.2559]
[1728520939690,0.17251496,60446.0,60443.0,0.2559]
[1728520939914,0.17251496,60446.0,60425.0,0.000817]
[1728520939915,0.165461,60437.0,60425.0,0.000817]
[1728520940140,0.165491,60426.0,60425.0,0.000817]
[1728520940366,0.17470751,60426.0,60425.0,0.000817]
[1728520941019,0.17470751,60426.0,60425.0,0.009817]
[1728520941249,0.17470751,60426.0,60425.0,0.000817]
[1728520941469,0.00921651,60426.0,60425.0,0.000817]
[1728520941720,0.01121651,60426.0,60425.0,0.000817]
[1728520941955,0.17670751,60426.0,60425.0,0.000817]
[1728520942158,0.18170751,60426.0,60425.0,0.000817]
[1728520943007,0.01421651,60426.0,60425.0,0.000817]
[1728520943247,0.01921651,60426.0,60425.0,0.000817]
[1728520943678,0.01921651,60426.0,60425.0,0.166311]
[1728520943888,0.01921651,60426.0,60425.0,0.000817]
[1728520944573,0.18470751,60426.0,60425.0,0.000817]
[1728520944790,0.01921651,60426.0,60425.0,0.000817]
[1728520945258,0.18470751,60426.0,60425.0,0.000817]
[1728520945923,0.01921651,60426.0,60425.0,0.000817]
[1728520946381,0.01921651,60426.0,60425.0,0.166311]
[1728520946589,0.01921651,60426.0,60425.0,0.000817]
[1728520947669,1.87306202,60426.0,60425.0,0.000817]
[1728520948593,1.87306202,60426.0,60425.0,0.166311]
[1728520948830,1.87306202,60426.0,60425.0,0.000817]
[1728520949037,1.87092602,60426.0,60425.0,0.000817]
[1728520949270,1.87306202,60426.0,60425.0,0.000817]
[1728520949487,2.03855302,60426.0,60425.0,0.000817]
[1728520950378,1.87306202,60426.0,60425.0,0.000817]
[1728520950599,2.03855302,60426.0,60425.0,0.000817]
[1728520950826,1.87306202,60426.0,60425.0,0.000817]
[1728520953570,1.87306202,60426.0,60425.0,0.166311]
[1728520953814,1.87306202,60426.0,60425.0,0.000817]
[1728520954056,2.03855302,60426.0,60425.0,0.000817]
[1728520954507,1.87306202,60426.0,60425.0,0.000817]
[1728520955179,1.87092602,60426.0,60425.0,0.000817]
[1728520955407,1.87306202,60426.0,60425.0,0.000817]
[1728520955641,1.87092602,60426.0,60425.0,0.000817]
[1728520955885,1.87092602,60426.0,60425.0,0.166311]
[1728520956124,1.87092602,60426.0,60425.0,0.366811]
[1728520957049,1.86092602,60426.0,60425.0,0.366811]
[1728520957276,1.86192602,60426.0,60425.0,0.370811]
[1728520957536,1.86292602,60426.0,60425.0,0.372811]
[1728520957773,1.86292602,60426.0,60425.0,0.368811]
[1728520957774,1.86192602,60426.0,60425.0,0.368811]
[1728520958213,1.86456002,60426.0,60425.0,0.372811]
[1728520958711,1.86456002,60426.0,60425.0,0.38430496]
[1728520965065,1.28939338,60426.0,60425.0,0.9416636]
[1728520965222,1.28939338,60426.0,60425.0,0.9864943]
[1728520965223,1.09863393,60426.0,60425.0,0.9864943]
[1728520965448,0.2483382,60440.0,60439.0,0.002864]
[1728520965656,0.2483382,60440.0,60439.0,0.87713142]
[1728520965870,0.2483382,60440.0,60439.0,1.94131342]
[1728520966108,0.2504742,60457.0,60443.0,0.288445]
[1728520966335,0.2504742,60457.0,60443.0,0.77112478]
[1728520967017,0.2504742,60457.0,60443.0,0.71962378]
[1728520967676,0.002634,60444.0,60443.0,0.72262378]
[1728520967884,0.003634,60444.0,60443.0,0.72662378]
[1728520968319,0.003634,60444.0,60443.0,0.80752378]
[1728520969996,0.003634,60444.0,60443.0,0.81038778]
[1728520970229,0.00377,60460.0,60443.0,0.81038778]
[1728520970230,0.2483382,60456.0,60452.0,0.023]
[1728520970478,0.2483382,60456.0,60455.0,0.63238578]
[1728520970724,0.001634,60460.0,60455.0,0.63238578]
[1728520970725,0.001634,60460.0,60459.0,0.374265]
[1728520970982,0.001634,60460.0,60459.0,2.35730042]
[1728520971223,0.001634,60460.0,60459.0,1.83292042]
[1728520972691,0.001634,60460.0,60459.0,1.83492042]
[1728520972911,0.002634,60460.0,60459.0,0.39720623]
[1728520973169,0.002634,60460.0,60459.0,0.50198723]
[1728520973382,0.003634,60460.0,60459.0,0.51598723]
[1728520974122,0.003634,60460.0,60459.0,0.51517723]
[1728520976034,0.003634,60460.0,60459.0,0.70455101]
[1728520976230,0.003634,60460.0,60459.0,0.70655101]
[1728520976742,0.003634,60460.0,60459.0,0.70741501]
[1728520979507,0.003634,60460.0,60459.0,0.70941501]
[1728520979976,0.003634,60460.0,60459.0,0.71756201]
[1728520980497,0.003634,60460.0,60459.0,1.12673785]
[1728520980747,0.003634,60460.0,60459.0,0.87839965]
[1728520982624,0.003634,60460.0,60459.0,0.51804123]
[1728520983575,0.003634,60460.0,60459.0,0.70741501]
[1728520985269,0.003634,60460.0,60459.0,0.51804123]
[1728520988188,0.003634,60460.0,60459.0,0.38820623]
[1728520988404,0.003634,60460.0,60459.0,0.97599923]
[1728520990100,0.003634,60460.0,60459.0,1.16537301]
[1728520990785,0.003634,60460.0,60459.0,1.18837301]
[1728520991237,0.003634,60460.0,60459.0,1.19123701]
[1728520992389,0.003634,60460.0,60459.0,1.19323701]
[1728520992618,0.003634,60460.0,60459.0,1.19123701]
[1728520993295,0.003634,60460.0,60459.0,1.35207465]
[1728520993525,0.003634,60460.0,60459.0,1.54557465]
[1728520993759,0.003634,60460.0,60459.0,1.55898851]
[1728520994424,0.003634,60460.0,60459.0,1.56098851]
[1728520995804,0.003634,60460.0,60459.0,1.55898851]
[1728520996511,0.003634,60460.0,60459.0,1.55904034]
[1728520996743,0.003634,60460.0,60459.0,1.01732892]
[1728520997461,0.003634,60460.0,60459.0,1.00186323]
[1728520998155,0.003634,60460.0,60459.0,1.00386323]
[1728520998387,0.003634,60460.0,60459.0,1.16470087]
[1728520998857,0.003634,60460.0,60459.0,1.16270087]
[1728521001401,0.003634,60460.0,60459.0,1.16470087]
[1728521002970,0.003634,60460.0,60459.0,1.16270087]
[1728521003688,0.003634,60460.0,60459.0,1.16470087]
[1728521004148,0.003634,60460.0,60459.0,1.16270087]
[1728521006893,0.003634,60460.0,60459.0,2.24079387]
[1728521008934,0.003634,60460.0,60459.0,1.22318123]
[1728521009160,0.003634,60460.0,60459.0,0.96138823]
[1728521009385,0.003634,60460.0,60459.0,1.46138823]
[1728521011835,0.003634,60460.0,60459.0,0.96138823]
[1728521013576,0.003634,60460.0,60459.0,0.97688361]
[1728521013797,0.003634,60460.0,60459.0,0.97888361]
[1728521014028,0.003634,60460.0,60459.0,1.13972125]
[1728521014463,0.003634,60460.0,60459.0,1.18455195]
[1728521014680,0.003634,60460.0,60459.0,1.21732125]
[1728521015164,0.003634,60460.0,60459.0,1.39642125]
[1728521015608,0.003634,60460.0,60459.0,1.38092587]
[1728521016919,0.003634,60460.0,60459.0,1.88092587]
[1728521019825,0.2483382,60471.0,60470.0,0.288371]
[1728521020047,0.29763116,60479.0,60478.0,0.1]
[1728521020267,0.2483382,60479.0,60478.0,0.94257978]
[1728521020519,0.29763116,60486.0,60480.0,0.330687]
[1728521020736,0.29763116,60486.0,60485.0,0.16533]
[1728521020948,0.2483382,60486.0,60485.0,0.16533]
[1728521021175,0.05092696,60487.0,60486.0,0.165327]
[1728521022668,0.05092696,60487.0,60486.0,0.166327]
[1728521022881,0.05306296,60487.0,60486.0,0.166327]
[1728521024271,0.05306296,60487.0,60486.0,0.167327]
[1728521024493,0.00377,60487.0,60486.0,0.167327]
[1728521026426,0.05301946,60487.0,60486.0,0.167327]
[1728521029231,0.05301946,60487.0,60486.0,0.002]
[1728521029232,0.40380664,60487.0,60486.0,0.002]
[1728521029483,0.32993164,60487.0,60486.0,0.002]
[1728521029672,0.24200764,60487.0,60486.0,0.002]
[1728521029944,0.40708155,60487.0,60486.0,0.002]
[1728521031078,0.40708155,60487.0,60479.0,0.2483382]
[1728521031079,0.165343,60480.0,60479.0,0.2483382]
[1728521031321,0.32618064,60480.0,60479.0,0.2483382]
[1728521031552,0.40003323,60480.0,60476.0,0.165354]
[1728521031781,0.2100755,60479.0,60477.0,0.1]
[1728521032227,0.04923786,60479.0,60478.0,0.265349]
[1728521033152,0.0598253,60479.0,60478.0,0.265349]
[1728521033389,0.0598253,60479.0,60478.0,0.266349]
[1728521033825,0.04923786,60479.0,60478.0,0.266349]
[1728521034270,0.0598253,60479.0,60478.0,0.267349]
[1728521035625,0.05983948,60479.0,60478.0,0.267349]
[1728521036583,0.01058744,60479.0,60478.0,0.267349]
[1728521038038,0.07387806,60480.0,60478.0,0.102]
[1728521038275,0.07387806,60480.0,60479.0,0.165346]
[1728521039941,0.10064008,60481.0,60478.0,0.431697]
[1728521040195,0.10064008,60481.0,60480.0,0.165343]
[1728521040437,0.28254143,60481.0,60480.0,0.165343]
[1728521041436,0.18400504,60481.0,60480.0,0.165343]
[1728521041699,0.28254031,60481.0,60479.0,0.165345]